bitfinex-derivatives/quotes_BNBF0:USTF0_20250305
["timestamp","ask_amount","ask_price","bid_price","bid_amount"]
[1741150683190,0.31182333,589.98,588.96,1.25134261]
[1741150683393,0.31182333,589.97,588.96,1.25134261]
[1741150683595,0.31182333,589.98,588.97,1.25134261]
[1741150683888,0.33898879,589.99,588.97,1.25134261]
[1741150684093,0.31181797,589.98,588.97,1.25134261]
[1741150686602,0.31181797,589.98,588.96,1.77172119]
[1741150687903,0.31181797,589.98,588.94,1.25134261]
[1741150688099,0.31182905,589.97,588.94,1.25134261]
[1741150688304,0.31182905,589.98,588.94,1.25134261]
[1741150688499,0.31182905,589.97,588.94,1.25134261]
[1741150688698,0.31182905,589.98,588.94,1.25134261]
[1741150688900,0.33898879,589.99,588.94,1.25134261]
[1741150689101,0.31181556,589.98,588.95,1.77174374]
[1741150690006,0.31181556,589.98,588.95,3.02308635]
[1741150690998,0.31181556,589.98,588.95,1.25134261]
[1741150692216,0.31181556,589.98,588.95,3.02298864]
[1741150692615,0.31181556,589.98,589.0,1.25134261]
[1741150693515,0.3118116,589.97,589.0,1.25134261]
[1741150693716,0.3118116,589.96,589.0,1.25134261]
[1741150693918,0.3118116,589.95,589.0,1.25134261]
[1741150694118,0.3118116,589.98,589.0,1.25134261]
[1741150694317,0.3118116,589.97,589.0,1.25134261]
[1741150694512,0.3118116,589.98,589.0,1.25134261]
[1741150694919,0.3118116,589.98,588.72,1.25134261]
[1741150695217,0.3118116,589.98,588.73,0.3397143]
[1741150697220,0.3118116,589.98,588.73,1.59105691]
[1741150698022,0.3118116,589.98,588.74,1.7718114]
[1741150698216,0.3118116,589.98,588.75,0.33970276]
[1741150698920,0.3118116,589.98,588.75,1.59104537]
[1741150700220,0.33898879,589.99,588.75,1.59104537]
[1741150700221,0.31181595,589.97,588.75,1.59104537]
[1741150700419,0.31181595,589.96,588.75,1.59104537]
[1741150700623,0.33898879,589.99,588.75,1.59104537]
[1741150700920,0.31181595,589.98,588.75,1.59104537]
[1741150701822,0.31181595,589.98,588.77,1.25134261]
[1741150702124,0.31181595,589.98,588.78,0.33968545]
[1741150702322,0.33898879,589.99,588.78,0.33968545]
[1741150703319,0.31179876,589.98,588.78,0.33968545]
[1741150705324,0.3118085,589.97,588.78,0.33968545]
[1741150705523,0.3118085,589.96,588.78,0.33968545]
[1741150705725,0.3118085,589.95,588.78,0.33968545]
[1741150705920,0.3118085,589.94,588.78,0.33968545]
[1741150706121,0.3118085,589.93,588.84,1.25134261]
[1741150706324,0.33898879,589.99,588.84,1.25134261]
[1741150706727,0.31180559,589.98,588.84,1.25134261]
[1741150706926,0.31180542,589.97,588.84,1.25134261]
[1741150707122,0.31180542,589.98,588.84,1.25134261]
[1741150707324,0.31180542,589.97,588.84,1.25134261]
[1741150707528,0.31180542,589.98,588.84,1.25134261]
[1741150708221,0.31180542,589.98,588.85,0.33964507]
[1741150708831,0.31180542,589.98,589.0,1.25134261]
[1741150711532,0.31180542,589.98,588.99,1.25134261]
[1741150711932,0.33898879,589.99,588.99,1.25134261]
[1741150712232,0.31179903,589.98,588.99,1.25134261]
[1741150714030,0.31179903,589.98,589.12,1.25134261]
[1741150717835,0.31179903,589.98,589.08,1.25134261]
[1741150719530,0.31179903,589.97,589.08,1.25134261]
[1741150719734,0.31179903,589.96,589.08,1.25134261]
[1741150719931,0.31179903,589.95,589.08,1.25134261]
[1741150720136,2.87775469,590.02,588.85,0.33964507]
[1741150720137,0.33901752,589.94,589.1,1.25134261]
[1741150720331,0.31179903,589.93,589.1,1.25134261]
[1741150722331,4.50066462,589.93,588.95,1.25134261]
[1741150722536,1.98190934,589.92,588.95,1.25134261]
[1741150722737,0.31179903,589.91,588.95,1.25134261]
[1741150722935,2.95066137,589.91,588.95,1.25134261]
[1741150723235,2.95071492,589.9,588.95,1.25134261]
[1741150723546,1.98190934,589.89,588.95,1.25134261]
[1741150723741,0.31179903,589.88,588.95,1.25134261]
[1741150723939,0.31179903,589.88,588.93,1.25134261]
[1741150724532,0.31179903,589.87,588.93,1.25134261]
[1741150724738,0.31179903,589.86,588.93,1.25134261]
[1741150724939,0.31179903,589.85,588.93,1.25134261]
[1741150725135,0.31179903,589.84,588.93,1.25134261]
[1741150725335,0.31179903,589.83,588.93,1.25134261]
[1741150725540,0.31179903,589.82,588.93,1.25134261]
[1741150725739,0.33901752,589.94,588.93,1.25134261]
[1741150725740,0.31179903,589.81,588.93,1.25134261]
[1741150726043,0.31179903,589.8,588.92,1.25134261]
[1741150726341,0.33901752,589.94,588.92,1.25134261]
[1741150726542,0.31184091,589.93,588.92,1.25134261]
[1741150727632,0.33901752,589.94,588.92,1.25134261]
[1741150727633,0.31183142,589.92,588.92,1.25134261]
[1741150727838,0.31183142,589.93,588.92,1.25134261]
[1741150728345,0.31182696,589.92,588.92,1.25134261]
[1741150728545,0.31182696,589.93,588.92,1.25134261]
[1741150728735,0.31182696,589.92,588.92,1.25134261]
[1741150728940,0.31182696,589.93,588.98,1.25134261]
[1741150729936,0.33901752,589.94,588.98,1.25134261]
[1741150730135,0.31184133,589.93,588.98,1.25134261]
[1741150731342,0.31184133,589.93,588.97,1.25134261]
[1741150732235,1.98224465,589.93,588.97,1.25134261]
[1741150732437,0.31184133,589.92,588.97,1.25134261]
[1741150732637,1.20769715,589.92,588.97,1.25134261]
[1741150732839,0.311841,589.91,588.97,1.25134261]
[1741150733338,1.98368206,589.92,588.97,1.25134261]
[1741150733541,0.311841,589.91,588.97,1.25134261]
[1741150733742,0.311841,589.93,588.97,1.25134261]
[1741150733941,0.311841,589.92,588.97,1.25134261]
[1741150734137,0.311841,589.93,588.97,1.25134261]
[1741150734345,0.311841,589.92,588.97,1.25134261]
[1741150734544,0.311841,589.93,588.97,1.25134261]
[1741150734745,0.311841,589.92,588.97,1.25134261]
[1741150734940,0.311841,589.93,588.97,1.25134261]
[1741150735240,0.311841,589.93,589.01,1.25134261]
[1741150737044,0.311841,589.93,589.0,1.25134261]
[1741150738039,4.50507585,589.93,589.0,1.25134261]
[1741150738344,3.19137921,589.92,589.0,1.25134261]
[1741150738645,1.28160784,589.91,589.0,1.25134261]
[1741150738840,0.311841,589.9,589.0,1.25134261]
[1741150739241,0.311841,589.91,589.0,1.25134261]
[1741150739448,0.311841,589.9,589.03,1.25134261]
[1741150739646,0.33901752,589.94,589.03,1.25134261]
[1741150739846,0.31185896,589.93,589.03,1.25134261]
[1741150740047,1.98370002,589.93,589.03,1.25134261]
[1741150740247,0.31185896,589.92,589.03,1.25134261]
[1741150740743,5.71539229,589.92,589.03,1.25134261]
[1741150740941,4.50491921,589.91,589.03,1.25134261]
[1741150741145,1.98370002,589.9,589.03,1.25134261]
[1741150741345,0.31185896,589.89,589.03,1.25134261]
[1741150741749,1.28155865,589.89,589.03,1.25134261]
[1741150741954,0.31185896,589.88,589.0,1.25134261]
[1741150742151,0.31185896,589.87,589.0,1.25134261]
[1741150742347,0.96969969,589.92,589.0,1.25134261]
[1741150742348,0.31185896,589.91,589.0,1.25134261]
[1741150742547,0.31185896,589.9,589.0,1.25134261]
[1741150743654,0.31185896,589.93,589.0,1.25134261]
[1741150743849,0.31185896,589.92,589.0,1.25134261]
[1741150744049,0.31185896,589.91,589.0,1.25134261]
[1741150744355,0.31185896,589.9,589.0,1.25134261]
[1741150744556,0.3118283,589.89,589.0,1.25134261]
[1741150744751,0.3118283,589.93,589.0,1.25134261]
[1741150744958,0.3118283,589.92,589.0,1.25134261]
[1741150745151,0.3118283,589.93,589.0,1.25134261]
[1741150745455,0.3118283,589.92,588.94,1.25134261]
[1741150745655,0.3118283,589.93,588.94,1.25134261]
[1741150745955,0.3118283,589.92,588.94,1.25134261]
[1741150746157,0.3118283,589.93,588.94,1.25134261]
[1741150746454,0.3118283,589.92,588.94,1.25134261]
[1741150746655,0.3118283,589.93,588.94,1.25134261]
[1741150746854,0.3118283,589.92,588.94,1.25134261]
[1741150747051,0.3118283,589.93,588.94,1.25134261]
[1741150747254,0.3118283,589.92,588.94,1.25134261]
[1741150747552,0.3118283,589.91,588.95,1.25134261]
[1741150747757,0.3118283,589.9,588.95,1.25134261]
[1741150747956,0.3118283,589.89,588.95,1.25134261]
[1741150748255,0.3118283,589.88,588.95,1.25134261]
[1741150748556,0.3118283,589.87,588.95,1.25134261]
[1741150748757,0.3118283,589.86,588.95,1.25134261]
[1741150748951,0.3118283,589.85,588.95,1.25134261]
[1741150749151,0.3118283,589.84,588.95,1.25134261]
[1741150749350,2.49184573,589.92,588.95,1.25134261]
[1741150749551,0.3118283,589.83,588.95,1.25134261]
[1741150749752,0.3118283,589.82,588.95,1.25134261]
[1741150749957,0.3118283,589.91,588.95,1.25134261]
[1741150750160,0.3118283,589.9,588.95,1.25134261]
[1741150750457,0.3118283,589.91,588.95,1.25134261]
[1741150750659,0.3118283,589.9,588.95,1.25134261]
[1741150750858,0.3118283,589.89,588.92,1.25134261]
[1741150751056,2.18001743,589.92,588.92,1.25134261]
[1741150751057,0.3118283,589.88,588.92,1.25134261]
[1741150751358,0.3118283,589.87,588.92,1.25134261]
[1741150751558,0.3118283,589.91,588.92,1.25134261]
[1741150751759,0.3118283,589.9,588.92,1.25134261]
[1741150751959,0.3118283,589.91,588.92,1.25134261]
[1741150752161,0.3118283,589.9,589.02,1.25134261]
[1741150752361,0.3118283,589.89,589.02,1.25134261]
[1741150752560,0.3118283,589.88,589.02,1.25134261]
[1741150752861,0.3118283,589.87,589.02,1.25134261]
[1741150753360,0.3118283,589.86,589.02,1.25134261]
[1741150753559,0.3118283,589.91,589.02,1.25134261]
[1741150753761,0.3118283,589.9,589.03,1.25134261]
[1741150753961,0.3118283,589.91,589.03,1.25134261]
[1741150754155,0.3118283,589.9,589.03,1.25134261]
[1741150754554,0.3118283,589.89,589.03,1.25134261]
[1741150754755,0.3118283,589.88,589.03,1.25134261]
[1741150754959,0.3118283,589.93,589.03,1.25134261]
[1741150755155,0.65085732,589.92,589.03,1.25134261]
[1741150755359,0.65086306,589.91,589.03,1.25134261]
[1741150755553,0.3118283,589.9,589.03,1.25134261]
[1741150756460,0.3118283,589.9,589.01,1.25134261]
[1741150759562,4.50449203,589.9,589.01,1.25134261]
[1741150759760,3.19387168,589.89,589.01,1.25134261]
[1741150759961,2.83286548,589.88,589.01,1.25134261]
[1741150760157,1.98345485,589.87,589.01,1.25134261]
[1741150760359,0.3118283,589.86,589.01,1.25134261]
[1741150760557,1.98345485,589.86,589.01,1.25134261]
[1741150760763,0.3118283,589.85,589.01,1.25134261]
[1741150761058,0.3118283,589.84,589.01,1.25134261]
[1741150761264,0.3118283,589.86,589.01,1.25134261]
[1741150761460,1.67162655,589.88,589.01,1.25134261]
[1741150761461,0.3118283,589.85,589.01,1.25134261]
[1741150761661,1.98345485,589.87,589.01,1.25134261]
[1741150761863,0.3118283,589.86,589.01,1.25134261]
[1741150762458,0.3118283,589.85,589.01,1.25134261]
[1741150762762,0.3118283,589.84,589.01,1.25134261]
[1741150763062,0.3118283,589.83,589.01,1.25134261]
[1741150763264,1.21041683,589.87,589.02,1.25134261]
[1741150763461,0.31187061,589.86,589.02,1.25134261]
[1741150763661,2.88150713,589.89,589.02,1.25134261]
[1741150763662,2.95257379,589.88,589.02,1.25134261]
[1741150763859,1.98296091,589.87,589.02,1.25134261]
[1741150764062,0.31187061,589.86,589.02,1.25134261]
[1741150764768,3.19337774,589.87,589.02,1.25134261]
[1741150765066,2.95234389,589.86,589.02,1.25134261]
[1741150765260,1.6710903,589.85,589.01,1.25134261]
[1741150765459,0.31189176,589.84,589.01,1.25134261]
[1741150766061,4.50344136,589.87,589.01,1.25134261]
[1741150766263,1.98308677,589.86,589.01,1.25134261]
[1741150766565,0.31189176,589.85,589.01,1.25134261]
[1741150766959,4.50343042,589.85,589.01,1.25134261]
[1741150767164,1.98308677,589.84,589.01,1.25134261]
[1741150767364,0.31189176,589.83,589.01,1.25134261]
[1741150767966,4.16289321,589.83,588.85,1.59098768]
[1741150768265,2.95247638,589.82,588.85,1.59098768]
[1741150768458,1.98308677,589.81,588.85,1.59098768]
[1741150768662,0.31191466,589.8,588.85,1.59098768]
[1741150769064,1.52233149,589.81,588.85,1.59098768]
[1741150769265,0.31191466,589.8,588.85,1.59098768]
[1741150769766,0.31191466,589.79,588.85,1.59098768]
[1741150769962,1.98310967,589.84,588.85,1.59098768]
[1741150770167,0.31191466,589.83,588.85,1.59098768]
[1741150770370,0.3390865,589.82,588.85,1.59098768]
[1741150770670,0.31192523,589.81,588.85,0.33964507]
[1741150771666,2.83219972,589.81,588.85,0.33964507]
[1741150771869,3.19327531,589.8,588.85,0.33964507]
[1741150772065,2.52027449,589.79,588.85,0.33964507]
[1741150772269,0.31192523,589.78,588.85,0.33964507]
[1741150772470,3.19327531,589.78,588.85,0.33964507]
[1741150772670,1.28131484,589.77,588.85,0.33964507]
[1741150772973,0.31192523,589.76,588.88,1.25134261]
[1741150773365,0.31192523,589.77,588.88,1.25134261]
[1741150773571,0.31192523,589.76,588.88,1.25134261]
[1741150773769,1.67093325,589.78,588.88,1.25134261]
[1741150773969,0.31194009,589.77,588.88,1.25134261]
[1741150774369,5.71344326,589.77,588.88,1.25134261]
[1741150774571,2.95226295,589.76,588.88,1.25134261]
[1741150774874,1.98287334,589.75,588.76,1.25134261]
[1741150775074,0.31194009,589.74,588.76,1.25134261]
[1741150775872,1.98287334,589.77,588.76,1.25134261]
[1741150776076,0.31194009,589.76,588.77,1.77232274]
[1741150776570,1.28100894,589.76,588.77,1.77232274]
[1741150776870,0.31194009,589.75,588.77,1.77232274]
[1741150777069,0.31194009,589.74,588.77,1.77232274]
[1741150777275,2.83123965,589.78,588.77,1.77232274]
[1741150777578,1.52235692,589.77,588.77,1.77232274]
[1741150777774,0.31194009,589.76,588.77,1.77232274]
[1741150777968,0.31194009,589.76,588.74,1.25134261]
[1741150778170,0.31194009,589.75,588.77,1.77232274]
[1741150778372,0.31194009,589.74,588.77,1.77232274]
[1741150778571,0.31194009,589.79,588.77,1.77232274]
[1741150778772,0.31194009,589.78,588.77,1.77232274]
[1741150779076,0.31194009,589.77,588.77,1.77232274]
[1741150779271,0.31194009,589.79,588.77,1.77232274]
[1741150779475,0.31194009,589.78,588.77,1.77232274]
[1741150779675,0.31194009,589.79,588.77,1.77232274]
[1741150781177,0.31194009,589.79,588.76,1.25134261]
[1741150783179,0.31194009,589.79,588.78,1.25134261]
[1741150784477,1.28067194,589.79,588.78,1.25134261]
[1741150784778,0.31194009,589.78,588.78,1.25134261]
[1741150785480,0.31194009,589.78,588.8,1.25134261]
[1741150785679,0.31194009,589.79,588.8,1.25134261]
[1741150785979,0.31194009,589.78,588.8,1.25134261]
[1741150786173,0.31194009,589.79,588.8,1.25134261]
[1741150787375,0.31194009,589.79,588.82,1.25134261]
[1741150788778,0.31194009,589.81,588.82,1.25134261]
[1741150789074,0.31194009,589.8,588.82,1.25134261]
[1741150789478,0.31194009,589.8,588.84,1.25134261]
[1741150792480,0.31194009,589.8,588.88,1.25134261]
[1741150794879,0.31194009,589.8,588.86,1.25134261]
[1741150796980,0.31194009,589.8,588.89,1.25134261]
[1741150799080,0.31194009,589.8,588.93,1.25134261]
[1741150801487,0.31194009,589.8,588.9,1.25134261]
[1741150803594,0.31194009,589.8,589.02,1.25134261]
[1741150804393,0.31188179,589.79,589.02,1.25134261]
[1741150804595,0.31188179,589.8,589.02,1.25134261]
[1741150804893,0.31188179,589.79,589.02,1.25134261]
[1741150805094,0.31188179,589.8,589.02,1.25134261]
[1741150805294,0.31188179,589.79,589.02,1.25134261]
[1741150805488,0.33909225,589.81,589.02,1.25134261]
[1741150805489,0.31188179,589.8,589.02,1.25134261]
[1741150805695,0.31188179,589.79,588.96,1.25134261]
[1741150805892,0.31188179,589.8,588.96,1.25134261]
[1741150807694,0.31188179,589.8,588.95,1.25134261]
[1741150810095,0.31188179,589.8,588.94,1.25134261]
[1741150812495,0.31188179,589.8,588.95,1.25134261]
[1741150815799,0.33909225,589.81,588.95,1.25134261]
[1741150815995,0.33909225,589.81,588.5,2.58832617]
[1741150815996,0.33909225,589.81,588.9,1.25134261]
[1741150818894,0.33909225,589.81,588.93,1.25134261]
[1741150821605,0.33909225,589.81,588.89,1.77136046]
[1741150826005,0.33909225,589.81,588.72,1.25134261]
[1741150826206,0.33909225,589.81,588.73,0.3397143]
[1741150827102,0.33909225,589.81,588.74,1.77166858]
[1741150828211,0.33909225,589.81,588.81,1.25134261]
[1741150829217,0.3118448,589.8,588.81,1.25134261]
[1741150829914,0.33909225,589.81,588.81,1.25134261]
[1741150830114,0.31183343,589.8,588.81,1.25134261]
[1741150830518,0.33909225,589.81,588.81,1.25134261]
[1741150830914,0.33909225,589.81,589.01,1.25134261]
[1741150832522,0.31183242,589.8,589.01,1.25134261]
[1741150832825,0.33909225,589.81,589.01,1.25134261]
[1741150833217,0.33909225,589.81,589.05,1.25134261]
[1741150835128,0.33909225,589.81,588.85,1.25134261]
[1741150837227,0.33909225,589.81,589.05,1.25134261]
[1741150839526,0.31184833,589.8,589.05,1.25134261]
[1741150840228,0.31184833,589.8,588.73,0.3397143]
[1741150840229,0.31184833,589.8,589.07,1.25134261]
[1741150842032,0.31184833,589.8,589.03,1.25134261]
[1741150844529,0.31181211,589.79,589.03,1.25134261]
[1741150844729,0.33909225,589.81,589.11,1.25134261]
[1741150844930,0.31181211,589.8,589.11,1.25134261]
[1741150846227,0.33909225,589.81,589.11,1.25134261]
[1741150846228,0.3118131,589.79,589.11,1.25134261]
[1741150846434,0.3118131,589.8,589.11,1.25134261]
[1741150846633,0.33909225,589.81,589.11,1.25134261]
[1741150846832,0.31181195,589.8,589.11,1.25134261]
[1741150847429,0.31181195,589.8,589.1,1.25134261]
[1741150848733,0.33909225,589.81,589.1,1.25134261]
[1741150849536,0.31181819,589.8,589.1,1.25134261]
[1741150849738,0.33909225,589.81,589.1,1.25134261]
[1741150849939,0.31181849,589.8,589.1,1.25134261]
[1741150850134,0.33909225,589.81,589.1,1.25134261]
[1741150850537,0.33909225,589.81,589.09,1.25134261]
[1741150851439,1.20862567,590.09,589.09,1.25134261]
[1741150851639,0.31178416,590.08,589.09,1.25134261]
[1741150852138,4.49787241,590.22,589.09,1.25134261]
[1741150852338,4.49787241,590.22,588.73,0.3397143]
[1741150852339,2.31975393,590.21,589.1,1.25134261]
[1741150852539,0.65065234,590.2,589.1,1.25134261]
[1741150852734,0.65065808,590.19,589.1,1.25134261]
[1741150852933,0.65066382,590.18,589.1,1.25134261]
[1741150853138,0.65066822,590.17,589.1,1.25134261]
[1741150853334,0.65067396,590.16,589.1,1.25134261]
[1741150853536,0.65067971,590.15,589.1,1.25134261]
[1741150853738,0.65068545,590.14,589.1,1.25134261]
[1741150854042,0.65069119,590.13,589.1,1.25134261]
[1741150854237,0.65069693,590.12,589.1,1.25134261]
[1741150854433,0.31178282,590.11,589.1,1.25134261]
[1741150855434,0.31178282,590.11,588.86,1.25134261]
[1741150855639,0.31178282,590.11,588.86,1.59098191]
[1741150858336,0.3117982,590.1,588.86,1.59098191]
[1741150858539,2.97595681,590.12,588.86,1.59098191]
[1741150858540,1.52042387,590.11,588.86,1.59098191]
[1741150858743,0.3117982,590.1,588.86,1.59098191]
[1741150858941,2.4883261,590.1,588.86,1.59098191]
[1741150859140,0.3117982,590.09,588.86,1.59098191]
[1741150859336,0.3117982,590.09,588.86,0.3396393]
[1741150861241,0.3118116,590.08,588.86,0.3396393]
[1741150861441,0.3118116,590.09,588.86,0.3396393]
[1741150861641,0.3118116,590.08,588.86,0.3396393]
[1741150861843,0.33893709,590.08,588.86,0.3396393]
[1741150862042,0.3118116,590.07,588.86,0.3396393]
[1741150862743,0.33894858,590.06,588.86,0.3396393]
[1741150862942,0.3118116,590.05,588.86,0.3396393]
[1741150863144,0.33896007,590.04,588.86,0.3396393]
[1741150863342,0.3118116,590.03,588.86,0.3396393]
[1741150863539,0.3118116,590.03,589.04,1.25134261]
[1741150863942,1.77193169,590.02,589.04,1.25134261]
[1741150864141,0.3118116,590.01,589.04,1.25134261]
[1741150864348,0.31190047,590.0,589.04,1.25134261]
[1741150864644,0.31190047,589.99,589.04,1.25134261]
[1741150864842,0.33899454,589.98,589.04,1.25134261]
[1741150865043,0.31190047,589.97,589.04,1.25134261]
[1741150865444,0.33900603,589.96,589.04,1.25134261]
[1741150865639,0.31190047,589.95,589.04,1.25134261]
[1741150865846,0.33901752,589.94,589.04,1.25134261]
[1741150866142,0.31190047,589.93,588.86,0.3396393]
[1741150866345,0.33902902,589.92,588.86,0.3396393]
[1741150866547,0.31190047,589.91,588.86,0.3396393]
[1741150866744,0.33904051,589.9,588.86,0.3396393]
[1741150866946,0.31190047,589.89,588.86,0.3396393]
[1741150867147,0.65094673,589.89,588.86,0.3396393]
[1741150867545,0.31190047,589.88,588.86,0.3396393]
[1741150868746,0.31190047,589.88,588.9,1.25134261]
[1741150870345,0.31190047,589.88,588.95,1.25134261]
[1741150872550,0.31190047,589.88,588.94,1.25134261]
[1741150872751,0.33904626,589.89,588.94,1.25134261]
[1741150872947,0.31186458,589.88,588.94,1.25134261]
[1741150876652,0.31182161,589.87,588.94,1.25134261]
[1741150876852,0.31182161,589.86,588.94,1.25134261]
[1741150877053,0.31182161,589.88,588.94,1.25134261]
[1741150879154,0.31182161,589.88,588.98,1.25134261]
[1741150880154,0.31185917,589.87,588.98,1.25134261]
[1741150880354,0.31185917,589.86,588.98,1.25134261]
[1741150880554,0.31185917,589.88,588.98,1.25134261]
[1741150881151,0.31185917,589.88,588.96,1.25134261]
[1741150882354,0.31184297,589.87,588.96,1.25134261]
[1741150882554,0.31184297,589.86,588.96,1.25134261]
[1741150882855,0.31184297,589.85,588.96,1.25134261]
[1741150883056,0.31184297,589.88,588.96,1.25134261]
[1741150883357,0.31184297,589.87,588.98,1.25134261]
[1741150883557,0.31183217,589.86,588.98,1.25134261]
[1741150883760,0.31183217,589.85,588.98,1.25134261]
[1741150883956,0.31183217,589.84,588.98,1.25134261]
[1741150884156,0.31183217,589.88,588.98,1.25134261]
[1741150885957,0.31183217,589.88,589.03,1.25134261]
[1741150888158,0.33904626,589.89,589.03,1.25134261]
[1741150888359,0.31181018,589.88,589.03,1.25134261]
[1741150889162,0.31181018,589.88,588.92,1.25134261]
[1741150889356,0.33904626,589.89,588.92,1.25134261]
[1741150889956,0.31177078,589.88,588.92,1.25134261]
[1741150890162,0.33904626,589.89,588.92,1.25134261]
[1741150891362,0.33904626,589.89,589.01,1.25134261]
[1741150892263,1.20862567,590.25,589.01,1.25134261]
[1741150892457,0.31172411,590.24,589.01,1.25134261]
[1741150892659,0.31172411,590.23,589.01,1.25134261]
[1741150892958,0.31172411,590.22,589.01,1.25134261]
[1741150893263,0.31172411,590.21,589.01,1.25134261]
[1741150893462,3.18943249,590.45,589.01,1.25134261]
[1741150893665,2.516833,590.44,589.01,1.25134261]
[1741150893959,0.65043715,590.43,589.01,1.25134261]
[1741150894163,0.31170098,590.42,589.19,1.25134261]
[1741150894364,3.18940936,590.42,589.19,1.25134261]
[1741150894564,2.82600305,590.41,589.19,1.25134261]
[1741150894863,1.98078369,590.4,589.19,1.25134261]
[1741150895064,0.31170098,590.39,589.19,1.25134261]
[1741150895264,0.33876486,590.38,589.19,1.25134261]
[1741150895563,0.31170098,590.37,589.19,1.25134261]
[1741150895959,0.33877633,590.36,589.19,1.25134261]
[1741150896162,0.31170098,590.35,589.19,1.25134261]
[1741150896362,0.31170098,590.35,589.13,1.25134261]
[1741150896560,0.33878781,590.34,589.13,1.25134261]
[1741150896865,0.31170098,590.33,589.13,1.25134261]
[1741150897164,0.31170059,590.32,589.13,1.25134261]
[1741150897365,0.31170059,590.33,589.13,1.25134261]
[1741150897666,0.31170059,590.32,589.13,1.25134261]
[1741150897864,0.33880503,590.31,589.13,1.25134261]
[1741150898064,0.31170059,590.3,589.13,1.25134261]
[1741150898268,0.33881651,590.29,589.13,1.25134261]
[1741150898467,0.31170059,590.28,589.04,1.25134261]
[1741150898663,0.33882799,590.27,589.04,1.25134261]
[1741150898864,0.31170452,590.26,589.04,1.25134261]
[1741150899862,0.31170452,590.26,589.0,1.25134261]
[1741150900165,0.31170452,590.26,589.01,0.3395528]
[1741150900361,0.33882799,590.27,589.01,0.3395528]
[1741150900562,0.31170759,590.26,589.01,0.3395528]
[1741150901962,0.33883947,590.25,589.01,0.3395528]
[1741150902166,0.31170759,590.24,589.01,0.3395528]
[1741150902363,0.33885095,590.23,589.01,0.3395528]
[1741150902569,0.31170759,590.22,589.01,0.3395528]
[1741150902767,0.65056428,590.22,589.01,0.3395528]
[1741150902969,0.31170759,590.21,589.01,0.3395528]
[1741150905670,0.3117413,590.2,589.01,0.3395528]
[1741150905864,0.3117413,590.19,589.01,0.3395528]
[1741150906067,0.3117413,590.18,589.01,0.3395528]
[1741150906267,0.3117413,590.21,589.01,0.3395528]
[1741150906468,0.3117413,590.2,589.01,0.3395528]
[1741150906671,0.3117413,590.21,589.01,0.3395528]
[1741150906972,0.3117413,590.2,589.01,0.3395528]
[1741150907272,0.3117413,590.19,589.01,0.3395528]
[1741150907466,0.3117413,590.21,589.01,0.3395528]
[1741150913780,0.3117413,590.21,589.1,1.25134261]
[1741150914174,0.65061023,590.2,589.1,1.25134261]
[1741150914381,0.65061597,590.19,589.1,1.25134261]
[1741150914579,0.65062171,590.18,589.1,1.25134261]
[1741150914780,0.65062745,590.17,589.1,1.25134261]
[1741150914977,2.87313136,590.3,589.1,1.25134261]
[1741150914978,0.65063319,590.16,589.1,1.25134261]
[1741150915177,0.31174205,590.15,589.1,1.25134261]
[1741150915474,0.31174205,590.15,589.09,1.25134261]
[1741150915879,0.31176458,590.14,589.09,1.25134261]
[1741150916075,0.31176458,590.13,589.09,1.25134261]
[1741150916274,0.31176458,590.12,589.09,1.25134261]
[1741150916474,0.31176458,590.11,589.09,1.25134261]
[1741150916679,0.31176458,590.1,589.09,1.25134261]
[1741150916877,0.31176458,590.09,589.09,1.25134261]
[1741150917075,0.31176458,590.08,589.09,1.25134261]
[1741150917380,0.31176458,590.15,589.1,1.25134261]
[1741150917679,0.31176458,590.14,589.1,1.25134261]
[1741150917875,0.31176458,590.15,589.1,1.25134261]
[1741150918476,0.33890263,590.14,589.1,1.25134261]
[1741150918676,0.31176458,590.13,589.1,1.25134261]
[1741150919275,1.77145063,590.12,589.1,1.25134261]
[1741150919583,0.31176458,590.11,589.01,0.3395528]
[1741150919881,0.31176458,590.1,589.01,0.3395528]
[1741150920082,0.31176458,590.09,589.01,0.3395528]
[1741150920277,0.31176458,590.08,589.01,0.3395528]
[1741150920481,0.31176458,590.07,589.01,0.3395528]
[1741150920782,1.77145063,590.12,589.01,0.3395528]
[1741150920976,0.31187703,590.11,589.01,0.3395528]
[1741150921176,1.77145063,590.12,589.01,0.3395528]
[1741150921177,0.31187703,590.1,589.01,0.3395528]
[1741150921382,0.31187703,590.09,589.01,0.3395528]
[1741150921682,0.31187703,590.08,589.01,0.3395528]
[1741150921982,0.31187703,590.07,588.91,1.25134261]
[1741150922174,0.31187703,590.13,588.91,1.25134261]
[1741150924684,0.31188609,590.12,588.91,1.25134261]
[1741150924879,0.31188609,590.11,588.64,1.25134261]
[1741150925080,0.31188609,590.1,588.65,0.33976046]
[1741150925280,0.31188609,590.13,588.65,0.33976046]
[1741150925483,0.31188609,590.12,588.65,0.33976046]
[1741150925682,0.31188609,590.13,588.65,0.33976046]
[1741150925984,0.6508002,590.12,588.65,0.33976046]
[1741150926183,0.31188609,590.11,588.65,0.33976046]
[1741150926383,0.3389256,590.1,588.65,0.33976046]
[1741150926580,0.31188609,590.09,588.65,0.33976046]
[1741150926785,0.33893709,590.08,588.65,0.33976046]
[1741150926988,0.31188609,590.07,588.65,0.33976046]
[1741150927381,0.3118998,590.06,588.65,0.33976046]